{"text_format":"1","workbook":"xlsx","n_sheets":3,"sheets":["ΕΝΤΥΠΟ A1-17 Γ δοση  ","ΕΝΤΥΠΟ A6-17 Γ δοση ","ΕΝΤΥΠΟ Α7-17 Γ ΔΟΣΗ "],"not_rendered":{"charts":0,"images":0,"macros":0,"external_links":0,"defined_names":1,"comments":0,"pivot_tables":0},"unopened":[],"bounds":{"document_bytes":16777216,"sheet_cells":100000,"rows_first":2000,"rows_last":500,"rows_between":2000,"halvings":0,"cell_chars":16384,"cell_head_chars":4096},"cells_cut":0,"cells_raw":0,"read":"whole","date_system":"1900"}

{"sheet":"ΕΝΤΥΠΟ A1-17 Γ δοση  ","index":0,"n_rows":30,"n_cols":6,"rows_kept":30,"cut":false,"hidden":false,"merged":[[6,2,6,4],[6,6,6,7],[7,2,7,4],[7,6,7,7],[3,2,3,7],[4,2,4,4],[4,6,4,7],[5,2,5,4],[5,6,5,7],[13,1,13,7],[14,1,14,7],[16,1,16,8],[17,1,17,8],[8,1,8,2],[9,1,9,7],[10,1,10,8],[11,1,11,7],[18,1,18,8],[20,1,20,8],[29,1,29,8],[21,1,21,8],[23,1,23,8],[25,1,25,8],[26,1,26,8],[27,1,27,8],[28,1,28,8]]}
[null," ΠΡΟΓΡΑΜΜΑ ΒΟΗΘΕΙΑ ΣΤΟ ΣΠΙΤΙ  2017/ΕΝΤΥΠΟ Α1-17/ Γ΄ ΔΟΣΗ"]
[]
[]
[null,"ΕΠΩΝΥΜ.ΦΟΡΕΑ"]
[null,"ΠΕΡΙΦΕΡΕΙΑ",null,null,null,"ΝΟΜΟΣ"]
[null,"ΔΙΕΥΘΥΝΣΗ",null,null,null,"ΤΚ"]
[null,"Ε-MAIL ΦΟΡΕΑ",null,null,null,"ΤΗΛΕΦ."]
[null,"Ε-MAIL ΔΗΜΟΥ",null,null,null,"ΤΗΛΕΦ."]
[null,"ΥΠΕΥΘ.ΕΠΙΚΟΙΝΩΝΙΑΣ"]
[null,"Προς την"]
[null,"ΕΛΛΗΝΙΚΗ ΕΤΑΙΡΕΙΑ ΤΟΠΙΚΗΣ ΑΝΑΠΤΥΞΗΣ ΚΑΙ ΑΥΤΟΔΙΟΙΚΗΣΗΣ Α.Ε. "]
[null,"Μυλλέρου 73-77, 104 36 Αθήνα   τηλεφ.213-1320.600"]
[]
[null,"ΒΕΒΑΙΩΣΗ  ΠΑΡΕΧΟΜΕΝΩΝ ΥΠΗΡΕΣΙΩΝ"]
[null,"μηνός Ιουλίου 2017"]
[]
[null,"Ως νόμιμος εκπρόσωπος του φορέα βεβαιώνω ότι ο φορέας μας, στο πλαίσιο του προγράμματος \"ΒΟΗΘΕΙΑ ΣΤΟ ΣΠΙΤΙ\", παρείχε κατά την περίοδο 1/7/2017 – 31/7/2017,  όλες τις υπηρεσίες που όφειλε στους εξυπηρετούμενους, σύμφωνα με τις υποχρεώσεις που απορρέουν από την υλοποίηση του προγράμματος και θα εξακολουθήσει να τις παρέχει μέχρι την 31η Δεκεμβρίου 2017. Όλοι οι εξυπηρετούμενοι και οι εργαζομενοι που παραθέτουμε αφορούν ΜΟΝΟΝ το Πρόγραμμα «Βοήθεια στο Σπίτι», και δεν χρηματοδοτούνται από άλλη πηγή."]
[null,"Πιο συγκεκριμένα ο φορέας μας, για το παραπάνω χρονικό διάστημα, παρείχε υπηρεσίες σε (αριθμός) …………………...…………………… εξυπηρετούμενους , "]
[null,"από τις …. (ΑΡΙΘΜΟΣ) δομές του φορέα μας.  "]
[]
[null,"Η βεβαίωση εκδίδεται για την σχετική  χρηματοδότηση του προγράμματος ΒΟΗΘΕΙΑ ΣΤΟ ΣΠΙΤΙ 2017 από  το Υπουργείο Εργασίας Κοινωνικής Ασφάλισης & Πρόνοιας, το Υπουργείο Εσωτερικών, και το ΕΦΚΑ για την περίοδο 1/01/2016 - 31/12/2017."]
[null,"Έλαβα γνώση των όρων της συμμετοχής μας στο πρόγραμμα, τους οποίους αποδέχομαι πλήρως."]
[]
[null,"ΗΜΕΡΟΜΗΝΙΑ ………………………….."]
[]
[null,"Ο  νόμιμος εκπρόσωπος του φορέα"]
[]
[]
[]
[null,"Ονοματεπώνυμο, υπογραφή και σφραγίδα"]

{"sheet":"ΕΝΤΥΠΟ A6-17 Γ δοση ","index":1,"n_rows":27,"n_cols":9,"rows_kept":27,"cut":false,"hidden":false,"merged":[[5,0,5,1],[5,2,5,8],[6,0,6,1],[6,2,6,6],[11,2,11,7],[14,2,14,7],[13,2,13,7],[12,2,12,7],[7,0,7,1],[7,2,7,6],[8,0,8,1],[8,2,8,6],[15,2,15,7],[23,0,23,8],[19,2,19,7],[16,2,16,7],[17,2,17,7],[18,2,18,7]]}
[" ΠΡΟΓΡΑΜΜΑ ΒΟΗΘΕΙΑ ΣΤΟ ΣΠΙΤΙ 2017 / ΕΝΤΥΠΟ Α6-17 /Γ΄ ΔΟΣΗ"]
[]
[null,null,null,"ΠΙΝΑΚΑΣ ΑΠΟΔΕΙΚΤΙΚΩΝ  ΠΛΗΡΩΜΗΣ ΜΙΣΘΟΔΟΣΙΑΣ"]
["΄ΠΡΟΣΟΧΗ ΕΝΑΣ ΠΙΝΑΚΑΣ ΓΙΑ ΟΛΟΥΣ ΤΟΥΣ ΜΗΝΕΣ (ΙΑΝΟΥΑΡΙΟΣ-ΣΕΠΤΕΜΒΡΙΟΣ 2017)"]
[]
["ΕΠΩΝΥΜ.ΦΟΡΕΑ"]
["ΠΕΡΙΦΕΡΕΙΑ",null,null,null,null,null,null,"ΝΟΜΟΣ"]
["ΥΠΕΥΘ.ΕΠΙΚΟΙΝΩΝ.",null,null,null,null,null,null,"ΤΗΛΕΦ."]
["Ε-MAIL",null,null,null,null,null,null,"ΚΙΝ. ΤΗΛΕΦ."]
[]
[]
["Α/Α","ΗΜΕΡΟΜΗΝ.","ΑΤΙΟΛΟΓΙΑ ΑΝΑΛΥΤΙΚΑ",null,null,null,null,null,"ΠΟΣΟ ΣΕ ΕΥΡΩ"]
["ΑΠΟΔΕΙΚΤ.*","ΠΛΗΡΩΜΗΣ"]
[1,"2016-01-31","π.χ. ΠΛΗΡΩΤΕΟ ΜΙΣΘΟΔΟΣΙΑΣ ΜΗΝΟΣ ΙΑΝΟΥΑΡΙΟΥ 2016"]
[2,null,"ΙΚΑ  (ΑΣΦΑΛΙΣΜ+ΕΡΓΟΔ.) μηνος Ιανουαριου 2016"]
[3,null,"πληρωμη ΦΜΥ Ιανουαρίου 2016"]
[4,null,"πληρωμη ΛΟΙΠΩΝ ΦΟΡΩΝ (Αλληλεγγ.)"]
[5]
[6]
[null,null,"ΣΥΝΟΛΟ",null,null,null,null,null,{"$f":"SUM(I14:I19)","v":0}]
[]
["* ΣΗΜΕΙΩΝΕΤΑΙ  Ο ΙΔΙΟΣ ΑΡΙΘΜΟΣ ΚΑΙ ΣΤΟ ΑΝΤΙΓΡΑΦΟ ΠΟΥ ΜΑΣ ΣΤΕΛΝΕΤΕ  (ΦΥΣΙΚΟ ΑΡΧΕΙΟ)."]
[]
["Δηλώνω ότι τα παραπάνω στοιχεία είναι αληθή και έχουν παρασχεθεί όλες οι προβλεπόμενες υπηρεσίες και παρακαλώ όπως προχωρήσετε στην καταβολή της Γ δόσης."]
["Δηλώνω ότι τα παραπάνω κόστη είναι αληθή και αφορούν ΜΟΝΟΝ το πρόγραμμα ΒΟΗΘΕΙΑ ΣΤΟ ΣΠΙΤΙ."]
[null,null,null,null,null,null,null,"Ημερομηνία…………………………"]
["ονοματεπώνυμο νόμιμου εκπροσώπου, υπογραφή ΚΑΙ ΣΦΡΑΓΙΔΑ"]

{"sheet":"ΕΝΤΥΠΟ Α7-17 Γ ΔΟΣΗ ","index":2,"n_rows":33,"n_cols":12,"rows_kept":33,"cut":false,"hidden":false,"merged":[[2,1,2,3],[2,4,2,14],[3,1,3,3],[3,4,3,5],[3,7,3,9],[3,11,3,14],[16,2,16,5],[17,2,17,5],[24,2,24,5],[25,2,25,5],[4,1,4,3],[4,11,4,14],[14,2,14,5],[15,2,15,5],[26,2,26,5],[27,2,27,5],[18,2,18,5],[19,2,19,5],[20,2,20,5],[21,2,21,5],[22,2,22,5],[23,2,23,5]]}
[null,null,"ΕΝΤΥΠΟ Νο Α7-17 /Γ΄ δόση",null,null,"ΠΡΟΓΡΑΜΜΑ ΒΟΗΘΕΙΑ ΣΤΟ ΣΠΙΤΙ 2017"]
[null,null,null,null,null,null,"Στατιστικά στοιχεία μηνός ΙΟΥΛΙΟΥ 2017 (ΕΝΑ ΕΝΤΥΠΟ ΑΝΑ ΦΟΡΕΑ)"]
[null,"ΕΠΩΝΥΜΙΑ ΦΟΡΕΑ"]
[null,"EMAIL φορεα",null,null,null,null,"ΤΗΛΕΦ.1",null,null,null,"ΚΙΝΗΤΟ"]
[null,"EMAIL ΔΗΜΟΥ",null,null,null,null,"ΤΗΛΕΦ.2",null,null,null,"ΚΙΝΗΤΟ"]
[]
[null,null,"ΗΛΙΚΙΑΚΗ ΑΝΑΛΥΣΗ ΕΞΥΠΗΡΕΤΟΥΜΕΝΩΝ ΑΝΑ ΦΥΛΟ"]
[null,null,null,"ΑΜΕΑ","65-70 ΕΤΩΝ","71-77 ΕΤΩΝ","78+ ΕΤΩΝ","ΣΥΝΟΛΟ"]
[null,null,"ΑΝΔΡΕΣ",null,null,null,null,{"$f":"SUM(D9:G9)","v":0}]
[null,null,"ΓΥΝΑΙΚΕΣ",null,null,null,null,{"$f":"SUM(D10:G10)","v":0}]
[null,null,"ΣΥΝΟΛΑ",{"$f":"SUM(D9:D10)","v":0},{"$f":"SUM(E9:E10)","v":0},{"$f":"SUM(F9:F10)","v":0},{"$f":"SUM(G9:G10)","v":0},{"$f":"SUM(H9:H10)","v":0}]
[]
[null,null,null,null,null,null,"ΕΙΔΟΣ ΥΠΗΡΕΣΙΩΝ & ΣΥΧΝΟΤΗΤΑ ΠΑΡΟΧΗΣ ΤΟΥΣ"]
[null,null,null,null,null,null,"ΑΡΙΘΜΟΣ ΑΤΟΜΩΝ ΠΟΥ ΕΞΥΠΗΡΕΤΟΥΝΤΑΙ "]
[null,null,"ΥΠΗΡΕΣΙΑ",null,null,null,"5 ΦΟΡΕΣ\nΕΒΔΟΜ.","2-4 ΦΟΡΕΣ\nΕΒΔΟΜ.","1 ΦΟΡΑ\nΕΒΔΟΜ.","2 ΦΟΡΕΣ\nΜΗΝΙΑΙΑ","1 ΦΟΡΑ\nΜΗΝΙΑΙΑ","ΣΥΝΟΛΑ \nΑΤΟΜΩΝ/\nΥΠΗΡΕΣΙΑ"]
[null,null,"ΑΤΟΜΙΚΗ ΚΟΙΝΩΝΙΚΗ ΣΤΗΡΙΞΗ",null,null,null,null,null,null,null,null,{"$f":"SUM(G16:K16)","v":0}]
[null,null,"ΚΟΙΝΩΝΙΚΗ ΣΤΗΡΙΞΗ ΟΙΚΟΓΕΝΕΙΑΣ",null,null,null,null,null,null,null,null,{"$f":"SUM(G17:K17)","v":0}]
[null,null,"ΝΟΣΗΛΕΥΤΙΚΗ ΦΡΟΝΤΙΔΑ",null,null,null,null,null,null,null,null,0]
[null,null,"ΥΓΕΙΝΗ ΚΑΙ ΚΑΘΑΡΙΟΤΗΤΑ ΟΙΚΙΑΣ",null,null,null,null,null,null,null,null,0]
[null,null,"ΑΓΟΡΕΣ ΕΙΔΩΝ ΠΡΩΤΗΣ ΑΝΑΓΚΗΣ",null,null,null,null,null,null,null,null,0]
[null,null,"ΦΑΓΗΤΟ ΣΙΤΗΣΗ",null,null,null,null,null,null,null,null,0]
[null,null,"ΥΠΟΒΟΗΘΗΣΗ ΜΕΤΑΚΙΝΗΣΕΩΝ",null,null,null,null,null,null,null,null,0]
[null,null,"ΙΑΤΡΙΚΗ ΦΡΟΝΤΙΔΑ",null,null,null,null,null,null,null,null,0]
[null,null,"ΦΥΣΙΟΘΕΡΑΠΕΥΤΙΚΗ ΦΡΟΝΤΙΔΑ",null,null,null,null,null,null,null,null,0]
[null,null,"ΣΥΝΟΔΕΙΑ/ΔΙΑΜΕΣΟΛΑΒΗΣΗ ΜΕ ΦΟΡΕΙΣ",null,null,null,null,null,null,null,null,0]
[null,null,"ΚΟΙΝΩΝΙΚΗ ΣΥΝΑΝΑΣΤΡΟΦΗ",null,null,null,null,null,null,null,null,0]
[null,null,"ΕΝΗΜΕΡΩΣΗ ΓΙΑ ΠΑΡΟΧΕΣ ΠΟΥ ΔΙΚΑΙΟΥΤΑΙ ",null,null,null,null,null,null,null,null,{"$f":"SUM(G27:K27)","v":0}]
[null,null,"Σύνολα",null,null,null,{"$f":"SUM(G16:G27)","v":0},{"$f":"SUM(H16:H27)","v":0},{"$f":"SUM(I16:I27)","v":0},{"$f":"SUM(J16:J27)","v":0},{"$f":"SUM(K16:K27)","v":0}]
[]
[null,null,"ημερομηνία","………………………………………"]
[]
[null,null,"…………………………………………………………………………………………."]
[null,null,"ονοματεπωνυμο και υπογραφή του νομίμου εκπροσωπου, και σφραγίδα φορέα"]